fUSD/lending_fUSD_20250623
["ID","MTS","AMOUNT","RATE_DAILY","PERIOD"]
[367144615,1750671034156,-490.0,0.00024689,3]
[367144616,1750671034165,-490.85157049,0.00024689,3]
[367144617,1750671034174,-1840.02,0.00024689,3]
[367144618,1750671034184,-613.75,0.00024689,3]
[367144619,1750671034193,-490.0,0.00024689,3]
[367144620,1750671034202,-490.0,0.00024689,3]
[367144621,1750671034212,-2981.49,0.00024689,3]
[367144622,1750671034221,-1421.03,0.00024689,3]
[367144623,1750671034230,-490.0,0.00024689,3]
[367144624,1750671034239,-490.0,0.00024689,3]
[367144625,1750671034248,-1615.12,0.00024689,3]
[367144626,1750671034258,-2199.74,0.00024689,3]
[367144627,1750671034266,-490.0,0.00024689,3]
[367144628,1750671034275,-1367.19,0.00024689,3]
[367144629,1750671034285,-490.0,0.00024689,3]
[367144630,1750671034294,-490.0,0.00024689,3]
[367144631,1750671034304,-873.9,0.00024689,3]
[367144632,1750671034313,-1277.01,0.00024689,3]
[367144633,1750671034322,-596.61,0.00024689,3]
[367144634,1750671034332,-736.22,0.00024689,3]
[367144635,1750671034342,-1232.55,0.00024689,3]
[367144636,1750671034353,-2264.65,0.00024689,3]
[367144637,1750671034362,-798.31,0.00024689,3]
[367144638,1750671034371,-490.0,0.00024689,3]
[367144639,1750671034380,-1460.83,0.00024689,3]
[367144640,1750671034390,-1230.43,0.00024689,3]
[367144641,1750671034399,-3458.74,0.00024689,3]
[367144642,1750671034408,-490.0,0.00024689,3]
[367144643,1750671034419,-493.53475917,0.00024689,3]
[367144644,1750671034429,-3322.15,0.00024689,3]
[367144645,1750671034438,-485.61127275,0.00024689,3]
[367144646,1750671034446,-1258.34,0.00024689,3]
[367144647,1750671034455,-542.15,0.00024689,3]
[367144648,1750671034464,-490.0,0.00024689,3]
[367144649,1750671034473,-1319.46,0.00024689,3]
[367144650,1750671034482,-236.78364203,0.00024689,3]
[367144651,1750671034491,-1266.38,0.00024689,3]
[367144652,1750671034501,-490.0,0.00024689,3]
[367144653,1750671034511,-4577.7,0.00024689,3]
[367144654,1750671034520,-490.0,0.00024689,3]
[367144655,1750671034529,-770.46,0.00024689,3]
[367144656,1750671034542,-490.0,0.00024689,3]
[367144657,1750671034551,-1409.81,0.00024689,3]
[367144658,1750671034561,-490.0,0.00024689,3]
[367144659,1750671034570,-861.06,0.00024689,3]
[367144660,1750671034580,-1362.36,0.00024689,3]
[367144661,1750671034589,-8287.4,0.00024689,3]
[367144662,1750671034599,-968.22,0.00024689,3]
[367144663,1750671034608,-490.0,0.00024689,3]
[367144664,1750671034618,-562.9,0.00024689,3]
[367144665,1750671034627,-722.97,0.00024689,3]
[367144666,1750671034636,-1605.74,0.00024689,3]
[367144667,1750671034645,-1832.31,0.00024689,3]
[367144668,1750671034655,-490.0,0.00024689,3]
[367144669,1750671034664,-1229.9,0.00024689,3]
[367144670,1750671034673,-417.14918188,0.00024689,3]
[367144671,1750671034682,-490.0,0.00024689,3]
[367144672,1750671034691,-834.59255148,0.00024689,3]
[367144673,1750671034700,-490.0,0.00024689,3]
[367144674,1750671034710,-1210.95,0.00024689,3]
[367144675,1750671034719,-1299.1,0.00024689,3]
[367144676,1750671034728,-490.0,0.00024689,3]
[367144677,1750671034737,-1087.46,0.00024689,3]
[367144678,1750671034746,-1286.14,0.00024689,3]
[367144679,1750671034755,-490.0,0.00024689,3]
[367144680,1750671034764,-1605.88,0.00024689,3]
[367144681,1750671034774,-3821.2,0.00024689,3]
[367144682,1750671034783,-752.18,0.00024689,3]
[367144683,1750671034792,-490.0,0.00024689,3]
[367144684,1750671034801,-490.0,0.00024689,3]
[367144685,1750671034810,-491.86157964,0.00024689,3]
[367144686,1750671034819,-6122.59,0.00024689,3]
[367144687,1750671034828,-502.58604689,0.00024689,3]
[367144688,1750671034837,-1424.95,0.00024689,3]
[367144689,1750671034846,-957.37,0.00024689,3]
[367144690,1750671034855,-490.0,0.00024689,3]
[367144691,1750671034864,-490.0,0.00024689,3]
[367144692,1750671034874,-1267.93,0.00024689,3]
[367144693,1750671034885,-490.0,0.00024689,3]
[367144694,1750671034896,-936.09,0.00024689,3]
[367144695,1750671034906,-563.52,0.00024689,3]
[367144696,1750671034917,-308.87918994,0.00024689,3]
[367144697,1750671034926,-490.0,0.00024689,3]
[367144698,1750671034935,-490.0,0.00024689,3]
[367144699,1750671034945,-1430.22,0.00024689,3]
[367144700,1750671034954,-1452.07,0.00024689,3]
[367144701,1750671034963,-1062.05,0.00024689,3]
[367144702,1750671034972,-490.0,0.00024689,3]
[367144703,1750671034981,-3287.6,0.00024689,3]
[367144704,1750671034990,-4015.02,0.00024689,3]
[367144705,1750671034999,-490.67111829,0.00024689,3]
[367144706,1750671035008,-490.0,0.00024689,3]
[367144707,1750671035020,-2640.32,0.00024689,3]
[367144708,1750671035030,-487.16405036,0.00024689,3]
[367144709,1750671035039,-490.0,0.00024689,3]
[367144710,1750671035048,-188162.4183,0.0002469,2]
[367144711,1750671035057,-167.35980488,0.00024704,2]
[367144712,1750671035067,-250.0,0.00024749,2]
[367144713,1750671035077,-666.0,0.00024772,2]
[367144714,1750671035086,-1348.65,0.00024784,3]
[367144715,1750671035096,-1255.46,0.00024784,3]
[367144716,1750671035105,-549.531499,0.00024784,3]
[367144717,1750671035114,-500.0,0.00024784,3]
[367144718,1750671035124,-2201.56,0.00024784,3]
[367144719,1750671035134,-1491.47,0.00024784,3]
[367144720,1750671035143,-2930.5,0.00024784,3]
[367144721,1750671035152,-1708.16,0.00024784,3]
[367144722,1750671035165,-5907.73,0.00024784,3]
[367144723,1750671035174,-1391.51,0.00024784,3]
[367144724,1750671035184,-575.02,0.00024784,3]
[367144725,1750671035193,-1084.95,0.00024784,3]
[367144726,1750671035203,-1300.29,0.00024784,3]
[367144727,1750671035212,-1536.61,0.00024784,3]
[367144728,1750671035221,-490.0,0.00024788,3]
[367144729,1750671035230,-1224.06,0.00024788,3]
[367144730,1750671035239,-645.55,0.00024788,3]
[367144731,1750671035250,-1390.19,0.00024788,3]
[367144732,1750671035259,-490.0,0.00024788,3]
[367144733,1750671035269,-490.0,0.00024788,3]
[367144734,1750671035278,-1689.64,0.00024788,3]
[367144735,1750671035288,-1008.05,0.00024788,3]
[367144736,1750671035297,-11226.73,0.00024788,3]
[367144737,1750671035307,-490.0,0.00024788,3]
[367144738,1750671035316,-490.0,0.00024788,3]
[367144739,1750671035325,-878.14,0.00024788,3]
[367144740,1750671035335,-490.0,0.00024788,3]
[367144741,1750671035344,-964.93,0.00024788,3]
[367144742,1750671035354,-1344.09,0.00024788,3]
[367144743,1750671035363,-2314.74,0.00024788,3]
[367144744,1750671035372,-490.0,0.00024788,3]
[367144745,1750671035381,-1288.85,0.00024788,3]
[367144746,1750671035390,-621.6,0.00024788,3]
[367144747,1750671035399,-1102.76,0.00024788,3]
[367144748,1750671035409,-513.81,0.00024788,3]
[367144749,1750671035418,-583.03,0.00024788,3]
[367144750,1750671035427,-1519.77,0.00024788,3]
[367144751,1750671035437,-1946.34,0.00024788,3]
[367144752,1750671035446,-1685.02,0.00024788,3]
[367144753,1750671035461,-942.64,0.00024788,3]
[367144754,1750671035471,-555.39,0.00024788,3]
[367144755,1750671035481,-2108.72,0.00024788,3]
[367144756,1750671035490,-505.66,0.00024788,3]
[367144757,1750671035499,-1117.03,0.00024788,3]
[367144758,1750671035511,-597.77,0.00024788,3]
[367144759,1750671035520,-490.0,0.00024788,3]
[367144760,1750671035529,-739.27,0.00024788,3]
[367144761,1750671035538,-1054.61,0.00024788,3]
[367144762,1750671035547,-490.0,0.00024788,3]
[367144763,1750671035555,-1245.98,0.00024788,3]
[367144764,1750671035565,-746.89,0.00024788,3]
[367144765,1750671035574,-1188.95,0.00024788,3]
[367144766,1750671035583,-1264.16,0.00024788,3]
[367144767,1750671035592,-991.38,0.00024788,3]
[367144768,1750671035601,-1099.57,0.00024788,3]
[367144769,1750671035610,-1256.51,0.00024788,3]
[367144770,1750671035619,-2170.06,0.00024788,3]
[367144771,1750671035629,-1192.33,0.00024788,3]
[367144772,1750671035637,-490.0,0.00024788,3]
[367144773,1750671035647,-490.0,0.00024788,3]
[367144774,1750671035656,-544.36,0.00024788,3]
[367144775,1750671035665,-1114.47,0.00024788,3]
[367144776,1750671035674,-1291.74,0.00024788,3]
[367144777,1750671035683,-490.0,0.00024788,3]
[367144778,1750671035692,-559.15,0.00024788,3]
[367144779,1750671035701,-633.75,0.00024788,3]
[367144780,1750671035710,-1018.46,0.00024788,3]
[367144781,1750671035719,-490.0,0.00024788,3]
[367144782,1750671035729,-313.20483822,0.00024788,3]
[367144783,1750671035738,-1499.34,0.00024788,3]
[367144784,1750671035747,-971.68,0.00024788,3]
[367144785,1750671035756,-744.75,0.00024788,3]
[367144786,1750671035765,-1123.73,0.00024788,3]
[367144787,1750671035774,-1493.13,0.00024788,3]
[367144788,1750671035783,-490.0,0.00024788,3]
[367144789,1750671035792,-806.25,0.00024788,3]
[367144790,1750671035801,-893.96,0.00024789,3]
[367144791,1750671035811,-757.54,0.00024789,3]
[367144792,1750671035819,-1279.9,0.00024789,3]
[367144793,1750671035829,-1111.65,0.00024789,3]
[367144794,1750671035838,-852.71,0.00024789,3]
[367144795,1750671035847,-490.0,0.00024789,3]
[367144796,1750671035856,-1214.37,0.00024789,3]
[367144797,1750671035865,-490.0,0.00024789,3]
[367144798,1750671035874,-601.1,0.00024789,3]
[367144799,1750671035883,-1230.36,0.00024789,3]
[367144800,1750671035892,-1535.19,0.00024789,3]
[367144801,1750671035901,-1124.34,0.00024789,3]
[367144802,1750671035910,-987.86,0.00024789,3]
[367144803,1750671035919,-1909.97,0.00024789,3]
[367144804,1750671035928,-1871.68,0.00024789,3]
[367144805,1750671035937,-1679.08,0.00024789,3]
[367144806,1750671035947,-3684.48,0.00024789,3]
[367144807,1750671035956,-1110.3,0.00024789,3]
[367144808,1750671035965,-6135.07,0.00024789,3]
[367144809,1750671035977,-1292.11,0.00024789,3]
[367144810,1750671035987,-4348.18,0.00024789,3]
[367144811,1750671035997,-1305.05,0.00024789,3]
[367144812,1750671036006,-4930.46,0.00024789,3]
[367144813,1750671036015,-5411.6,0.00024789,3]
[367144814,1750671036024,-490.0,0.00024789,3]
[367144815,1750671036034,-490.0,0.00024789,3]
[367144816,1750671036044,-3052.68,0.00024789,3]
[367144817,1750671036053,-498.89,0.00024789,3]
[367144818,1750671036062,-1243.35,0.00024789,3]
[367144819,1750671036072,-784.78,0.00024789,3]
[367144820,1750671036081,-1542.83,0.00024789,3]
[367144821,1750671036090,-1417.76,0.00024789,3]
[367144822,1750671036100,-1250.85,0.00024789,3]
[367144823,1750671036110,-3787.45,0.00024789,3]
[367144824,1750671036119,-522.67,0.00024789,3]
[367144825,1750671036128,-4663.0,0.00024789,3]
[367144826,1750671036137,-808.5,0.00024789,3]
[367144827,1750671036147,-725.43,0.00024789,3]
[367144828,1750671036158,-490.0,0.00024789,3]
[367144829,1750671036168,-1024.92,0.00024789,3]
[367144830,1750671036177,-1023.63,0.00024789,3]
[367144831,1750671036187,-1229.41,0.00024789,3]
[367144832,1750671036196,-1101.11,0.00024789,3]
[367144833,1750671036206,-200.0,0.000248,9]
[367144834,1750671036215,-196023.843107,0.000248,2]
[367144835,1750671036224,-757.54,0.00024804,3]
[367144836,1750671036234,-21780.4270119,0.00024831,2]
[367144837,1750671036243,-12020.13056843,0.00024832,2]
[367144838,1750671036253,-757.54,0.00024855,3]
[367144839,1750671036263,-757.54,0.00024899,3]
[367144840,1750671036272,-500.0,0.00024899,2]
[367144841,1750671036282,-500.0,0.00024899,2]
[367144842,1750671036291,-549.73841061,0.00024899,2]
[367144843,1750671036300,-186.28933861,0.00024899,2]
[367144844,1750671036310,-500.0,0.00024899,2]
[367144845,1750671036319,-500.0,0.00024899,2]
[367144846,1750671036330,-278.46636812,0.00024899,2]
[367144847,1750671036339,-500.0,0.00024899,2]
[367144848,1750671036348,-500.0,0.00024899,2]
[367144849,1750671036358,-500.0,0.00024899,2]
[367144850,1750671036367,-500.0,0.00024899,2]
[367144851,1750671036376,-500.0,0.00024899,2]
[367144852,1750671036386,-277.75024355,0.00024899,2]
[367144853,1750671036395,-500.0,0.00024899,2]
[367144854,1750671036405,-500.0,0.00024899,2]
[367144855,1750671036414,-500.0,0.00024899,2]
[367144856,1750671036424,-500.0,0.00024899,2]
[367144857,1750671036434,-500.0,0.00024899,2]
[367144858,1750671036444,-500.0,0.00024899,2]
[367144859,1750671036453,-500.0,0.000249,9]
[367144860,1750671036463,-25812.3077847,0.000249,2]
[367144861,1750671036472,-215.0738,0.00024906,2]
[367144862,1750671036482,-718.02,0.00024931,3]
[367144863,1750671036491,-1073.95,0.00024931,3]
[367144864,1750671036500,-3293.574,0.00024933,8]
[367144865,1750671036510,-150.344,0.00024933,8]
[367144866,1750671036519,-1220.02999255,0.00024943,2]
[367144867,1750671036529,-65341.2810357,0.00024953,2]
[367144868,1750671036539,-25812.3077847,0.00024953,2]
[367144869,1750671036548,-1996.0,0.00024959,2]
[367144870,1750671036557,-490.0,0.00024962,3]
[367144871,1750671036567,-827.98,0.00024962,3]
[367144872,1750671036577,-585.75,0.00024962,3]
[367144873,1750671036586,-490.0,0.00024962,3]
[367144874,1750671036595,-1216.51,0.00024962,3]
[367144875,1750671036605,-558.63,0.00024962,3]
[367144876,1750671036614,-802.27,0.00024962,2]
[367144877,1750671036623,-490.0,0.00024962,3]
[367144878,1750671036633,-490.0,0.00024962,3]
[367144879,1750671036642,-490.0,0.00024962,3]
[367144880,1750671036652,-490.0,0.00024962,3]
[367144881,1750671036662,-490.0,0.00024963,3]
[367144882,1750671036671,-490.0,0.00024963,3]
[367144883,1750671036680,-490.0,0.00024963,3]
[367144884,1750671036690,-490.0,0.00024963,3]
[367144885,1750671036699,-490.93,0.00024963,3]
[367144886,1750671036708,-707.79,0.00024963,3]
[367144887,1750671036717,-1604.37,0.00024963,3]
[367144888,1750671036726,-1142.47,0.00024963,3]
[367144889,1750671036735,-490.0,0.00024963,3]
[367144890,1750671036744,-1126.87,0.00024963,3]
[367144891,1750671036753,-490.0,0.00024963,3]
[367144892,1750671036763,-557.12,0.00024963,3]
[367144893,1750671036773,-1298.56,0.00024963,3]
[367144894,1750671036783,-547.26,0.00024963,3]
[367144895,1750671036792,-509.46,0.00024963,3]
[367144896,1750671036800,-490.0,0.00024963,3]
[367144897,1750671036810,-1345.74,0.00024963,3]
[367144898,1750671036819,-1643.04,0.00024963,3]
[367144899,1750671036829,-490.0,0.00024963,3]
[367144900,1750671036838,-830.36,0.00024963,3]
[367144901,1750671036848,-490.0,0.00024963,3]
[367144902,1750671036857,-525.41,0.00024963,3]
[367144903,1750671036867,-1068.15,0.00024963,3]
[367144904,1750671036876,-490.0,0.00024963,3]
[367144905,1750671036886,-1225.6,0.00024963,3]
[367144906,1750671036895,-690.72,0.00024963,3]
[367144907,1750671036905,-1239.87,0.00024963,3]
[367144908,1750671036914,-1334.29,0.00024963,3]
[367144909,1750671036923,-2305.072983,0.00024963,3]
[367144910,1750671036933,-1174.6,0.00024963,3]
[367144911,1750671036943,-237.55002551,0.00024963,3]
[367144912,1750671036952,-1213.260132,0.00024963,3]
[367144913,1750671036963,-1035.95,0.00024963,3]
[367144914,1750671036974,-490.0,0.00024963,3]
[367144915,1750671036983,-490.0,0.00024963,3]
[367144916,1750671036993,-1440.75,0.00024963,3]
[367144917,1750671037002,-490.0,0.00024963,3]
[367144918,1750671037012,-2027.51,0.00024963,3]
[367144919,1750671037021,-794.33,0.00024963,3]
[367144920,1750671037030,-490.0,0.00024963,3]
[367144921,1750671037040,-1437.79,0.00024963,3]
[367144922,1750671037050,-4833.380964,0.00024963,3]
[367144923,1750671037060,-614.15,0.00024963,3]
[367144924,1750671037069,-1340.2,0.00024963,3]
[367144925,1750671037079,-490.0,0.00024963,3]
[367144926,1750671037088,-490.0,0.00024963,3]
[367144927,1750671037097,-981.2,0.00024963,3]
[367144928,1750671037107,-601.64,0.00024963,3]
[367144929,1750671037116,-747.47,0.00024963,3]
[367144930,1750671037126,-2568.16,0.00024963,3]
[367144931,1750671037136,-1437.45,0.00024963,3]
[367144932,1750671037146,-1019.22,0.00024963,3]
[367144933,1750671037157,-1567.19,0.00024963,3]
[367144934,1750671037168,-1254.72,0.00024963,3]
[367144935,1750671037177,-490.0,0.00024963,3]
[367144936,1750671037188,-490.0,0.00024963,3]
[367144937,1750671037198,-1423.33,0.00024963,3]
[367144938,1750671037207,-10874.26,0.00024963,3]
[367144939,1750671037217,-1840.02,0.00024963,3]
[367144940,1750671037227,-613.75,0.00024963,3]
[367144941,1750671037236,-490.0,0.00024963,3]
[367144942,1750671037245,-2981.49,0.00024963,3]
[367144943,1750671037255,-1421.03,0.00024963,3]
[367144944,1750671037265,-490.0,0.00024963,3]
[367144945,1750671037274,-408.70605097,0.00024963,3]
[367144946,1750671037284,-1615.12,0.00024963,3]
[367144947,1750671037294,-2199.74,0.00024963,3]
[367144948,1750671037304,-268.21797584,0.00024963,3]
[367144949,1750671037315,-1367.19,0.00024963,3]
[367144950,1750671037325,-490.0,0.00024963,3]
[367144951,1750671037335,-873.9,0.00024963,3]
[367144952,1750671037345,-1277.01,0.00024963,3]
[367144953,1750671037354,-596.61,0.00024963,3]
[367144954,1750671037364,-736.22,0.00024963,3]
[367144955,1750671037374,-1232.55,0.00024963,3]
[367144956,1750671037383,-2264.65,0.00024963,3]
[367144957,1750671037393,-798.31,0.00024963,3]
[367144958,1750671037404,-454.85880512,0.00024963,3]
[367144959,1750671037414,-1460.83,0.00024963,3]
[367144960,1750671037423,-1230.43,0.00024963,3]
[367144961,1750671037433,-3458.74,0.00024963,3]
[367144962,1750671037443,-3322.15,0.00024963,3]
[367144963,1750671037452,-1258.34,0.00024963,3]
[367144964,1750671037463,-542.15,0.00024963,3]
[367144965,1750671037472,-490.0,0.00024963,3]
[367144966,1750671037482,-1319.46,0.00024963,3]
[367144967,1750671037491,-1266.38,0.00024963,3]
[367144968,1750671037501,-490.0,0.00024963,3]
[367144969,1750671037511,-4577.7,0.00024963,3]
[367144970,1750671037522,-490.0,0.00024963,3]
[367144971,1750671037532,-770.46,0.00024963,3]
[367144972,1750671037541,-1409.81,0.00024963,3]
[367144973,1750671037551,-490.0,0.00024963,3]
[367144974,1750671037563,-861.06,0.00024963,3]
[367144975,1750671037573,-1362.36,0.00024963,3]
[367144976,1750671037584,-8287.4,0.00024963,3]
[367144977,1750671037593,-968.22,0.00024963,3]
[367144978,1750671037603,-490.0,0.00024963,3]
[367144979,1750671037848,-562.9,0.00024963,3]
[367144980,1750671037859,-722.97,0.00024963,3]
[367144981,1750671037869,-1605.74,0.00024963,3]
[367144982,1750671037879,-1832.31,0.00024963,3]
[367144983,1750671037889,-1229.9,0.00024963,3]
[367144984,1750671037899,-490.0,0.00024963,3]
[367144985,1750671037908,-1210.95,0.00024963,3]
[367144986,1750671037918,-1299.1,0.00024963,3]
[367144987,1750671037927,-1087.46,0.00024963,3]
[367144988,1750671037937,-1286.14,0.00024963,3]
[367144989,1750671037946,-490.0,0.00024963,3]
[367144990,1750671037956,-1605.88,0.00024963,3]
[367144991,1750671037966,-3821.2,0.00024963,3]
[367144992,1750671037976,-752.18,0.00024963,3]
[367144993,1750671037985,-490.0,0.00024963,3]
[367144994,1750671037994,-490.0,0.00024963,3]
[367144995,1750671038003,-6122.59,0.00024963,3]
[367144996,1750671038013,-1424.95,0.00024963,3]
[367144997,1750671038022,-957.37,0.00024963,3]
[367144998,1750671038031,-1267.93,0.00024963,3]
[367144999,1750671038042,-563.52,0.00024963,3]
[367145000,1750671038051,-936.09,0.00024963,3]
[367145001,1750671038061,-490.0,0.00024963,3]
[367145002,1750671038071,-1430.22,0.00024963,3]
[367145003,1750671038080,-1452.07,0.00024963,3]
[367145004,1750671038089,-1062.05,0.00024963,3]
[367145005,1750671038100,-490.0,0.00024963,3]
[367145006,1750671038109,-3287.6,0.00024963,3]
[367145007,1750671038119,-39.90623375,0.00024963,3]
[367145053,1750671038596,-3975.11376625,0.00024963,3]
[367145055,1750671038606,-2640.32,0.00024963,3]
[367145057,1750671038615,-2868.0341983,0.0002499,2]
[367145059,1750671038625,-1070.11922851,0.00025,2]
[367145062,1750671038636,-600.0,0.00025,2]
[367145065,1750671038663,-643.0399233,0.00025,2]
[367145068,1750671038674,-5944.89825778,0.00025,2]
[367145252,1750671040414,-1000.0,0.00024589,2]
[367145255,1750671040423,-185.83828979,0.00024687,2]
[367145257,1750671040432,-500.0,0.00024687,2]
[367145259,1750671040441,-500.0,0.00024687,2]
[367145261,1750671040450,-231.54311291,0.00024687,2]
[367145263,1750671040458,-1260.79423013,0.00024689,3]
[367145265,1750671040469,-4026.3938299,0.00024689,3]
[367145269,1750671040500,-339.76193997,0.00024689,3]
[367145272,1750671040510,-2539.73,0.00024689,3]
[367145274,1750671040520,-490.0,0.00024788,3]
[367145276,1750671040529,-500.0,0.00024899,2]
[367145278,1750671040539,-500.0,0.00024899,2]
[367145280,1750671040548,-500.0,0.00024899,2]
[367145282,1750671040558,-500.0,0.00024899,2]
[367145284,1750671040566,-500.0,0.00024899,2]
[367145286,1750671040575,-500.0,0.00024899,2]
[367145288,1750671040584,-5626.95,0.00024963,3]
[367145289,1750671040593,-2539.73,0.00024963,3]
[367145291,1750671040602,-2283.82197901,0.00025,2]
[367145293,1750671040611,-1881.99999941,0.00025,7]
[367145296,1750671040620,-757.54,0.00025004,3]
[367145297,1750671040629,-150.0,0.00025008,4]
[367145299,1750671040638,-238.52912342,0.00025038,12]
[367145301,1750671040647,-2868.0341983,0.00025048,2]
[367145303,1750671040656,-43560.8540238,0.00025052,2]
[367145305,1750671040665,-11472.1367932,0.00025052,2]
[367145308,1750671040675,-43560.8540238,0.00025053,2]
[367145310,1750671040684,-14340.1709915,0.00025053,2]
[367145312,1750671040693,-1255.46,0.00025058,3]
[367145313,1750671040702,-2201.56,0.00025058,3]
[367145315,1750671040710,-1491.47,0.00025058,3]
[367145317,1750671040720,-2930.5,0.00025058,3]
[367145319,1750671040729,-1708.16,0.00025058,3]
[367145321,1750671040737,-5907.73,0.00025058,3]
[367145323,1750671040747,-1391.51,0.00025058,3]
[367145326,1750671040759,-575.02,0.00025058,3]
[367145328,1750671040768,-1084.95,0.00025058,3]
[367145330,1750671040777,-1300.29,0.00025058,3]
[367145332,1750671040786,-1536.61,0.00025058,3]
[367145334,1750671040795,-490.0,0.00025062,3]
[367145335,1750671040804,-1224.06,0.00025062,3]
[367145337,1750671040813,-645.55,0.00025062,3]
[367145339,1750671040823,-1390.19,0.00025062,3]
[367145341,1750671040832,-628.12391136,0.00025062,3]
[367145343,1750671040841,-490.0,0.00025062,3]
[367145346,1750671040851,-1689.64,0.00025062,3]
[367145348,1750671040860,-1008.05,0.00025062,3]
[367145350,1750671040870,-11226.73,0.00025062,3]
[367145351,1750671040879,-490.0,0.00025062,3]
[367145354,1750671040888,-490.0,0.00025062,3]
[367145355,1750671040897,-878.14,0.00025062,3]
[367145358,1750671040908,-490.0,0.00025062,3]
[367145359,1750671040917,-964.93,0.00025062,3]
[367145362,1750671040926,-1344.09,0.00025062,3]
[367145364,1750671040935,-2314.74,0.00025062,3]
[367145365,1750671040944,-490.0,0.00025062,3]
[367145367,1750671040953,-1288.85,0.00025062,3]
[367145369,1750671040963,-621.6,0.00025062,3]
[367145371,1750671040972,-1102.76,0.00025062,3]
[367145373,1750671040981,-513.81,0.00025062,3]
[367145375,1750671040991,-583.03,0.00025062,3]
[367145377,1750671041000,-1946.34,0.00025062,3]
[367145379,1750671041010,-1685.02,0.00025062,3]
[367145382,1750671041020,-942.64,0.00025062,3]
[367145383,1750671041029,-555.39,0.00025062,3]
[367145385,1750671041038,-2108.72,0.00025062,3]
[367145387,1750671041047,-505.66,0.00025062,3]
[367145390,1750671041057,-1117.03,0.00025062,3]
[367145391,1750671041066,-597.77,0.00025062,3]
[367145394,1750671041075,-490.0,0.00025062,3]
[367145395,1750671041085,-739.27,0.00025062,3]
[367145397,1750671041094,-1054.61,0.00025062,3]
[367145399,1750671041103,-1245.98,0.00025062,3]
[367145402,1750671041113,-746.89,0.00025062,3]
[367145403,1750671041122,-1188.95,0.00025062,3]
[367145405,1750671041131,-1264.16,0.00025062,3]
[367145407,1750671041140,-991.38,0.00025062,3]
[367145410,1750671041149,-1099.57,0.00025062,3]
[367145412,1750671041158,-1256.51,0.00025062,3]
[367145414,1750671041168,-2170.06,0.00025062,3]
[367145415,1750671041177,-1192.33,0.00025062,3]
[367145417,1750671041189,-490.0,0.00025062,3]
[367145419,1750671041198,-490.0,0.00025062,3]
[367145421,1750671041207,-544.36,0.00025062,3]
[367145423,1750671041216,-1114.47,0.00025062,3]
[367145426,1750671041226,-1291.74,0.00025062,3]
[367145428,1750671041239,-490.0,0.00025062,3]
[367145430,1750671041250,-559.15,0.00025062,3]
[367145432,1750671041261,-633.75,0.00025062,3]
[367145434,1750671041271,-1018.46,0.00025062,3]
[367145436,1750671041280,-490.0,0.00025062,3]
[367145437,1750671041289,-1499.34,0.00025062,3]
[367145440,1750671041299,-971.68,0.00025062,3]
[367145442,1750671041308,-744.75,0.00025062,3]
[367145444,1750671041317,-1123.73,0.00025062,3]
[367145445,1750671041325,-1493.13,0.00025062,3]
[367145447,1750671041334,-490.0,0.00025062,3]
[367145449,1750671041343,-806.25,0.00025062,3]
[367145451,1750671041353,-893.96,0.00025063,3]
[367145453,1750671041362,-1279.9,0.00025063,3]